bitfinex-derivatives/quotes_ETHF0:USTF0_20210110
["timestamp","ask_amount","ask_price","bid_price","bid_amount"]
[1610291865980,16.01933724,1301.1,1301.0,14.00959]
[1610291866781,16.01767431,1301.2,1301.0,14.00959]
[1610291867180,16.01767431,1301.2,1301.1,10.0]
[1610291867380,1.5483,1301.2,1301.1,10.0]
[1610291868579,17.81913077,1301.3,1301.1,10.0]
[1610291868981,17.81913077,1301.3,1301.2,10.0]
[1610291869281,17.81913077,1301.3,1301.1,10.0]
[1610291869682,3.3159,1301.3,1301.2,10.0]
[1610291869982,1.8018,1301.3,1301.1,10.0]
[1610291870181,21.91166275,1301.4,1301.1,10.0]
[1610291870382,21.91166275,1301.4,1301.2,10.0]
[1610291870582,21.91166275,1301.4,1301.1,10.0]
[1610291870983,23.44366275,1301.4,1301.2,10.0]
[1610291871386,23.44366275,1301.4,1301.3,4.00959]
[1610291871588,19.43407275,1301.4,1301.3,4.00959]
[1610291871787,19.43407275,1301.4,1301.3,14.00959]
[1610291871985,1.612,1301.5,1301.3,14.00959]
[1610291871986,17.90127085,1301.5,1301.3,14.00959]
[1610291872186,17.90127085,1301.5,1301.4,10.0]
[1610291872386,3.405,1301.7,1301.4,10.0]
[1610291872387,17.90033733,1301.6,1301.4,10.0]
[1610291872586,17.90033733,1301.6,1301.5,10.0]
[1610291873385,4.00959,1301.6,1301.5,14.00959]
[1610291873587,21.90941926,1301.6,1301.5,14.00959]
[1610291873888,4.00959,1301.6,1301.5,14.00959]
[1610291874990,20.02294942,1301.6,1301.5,14.00959]
[1610291875289,4.00959,1301.6,1301.5,14.00959]
[1610291875690,21.54512056,1301.6,1301.5,14.00959]
[1610291876093,5.53279,1301.6,1301.5,14.00959]
[1610291876289,4.00959,1301.6,1301.5,14.00959]
[1610291876690,5.53509,1301.6,1301.5,14.00959]
[1610291876891,1.5255,1301.6,1301.5,14.00959]
[1610291877693,15.65323748,1301.6,1301.5,14.00959]
[1610291878792,14.12773748,1301.6,1301.5,14.00959]
[1610291879094,17.53094422,1301.7,1301.5,14.00959]
[1610291879293,14.12594422,1301.7,1301.5,14.00959]
[1610291879494,14.12602094,1301.8,1301.6,10.0]
[1610291879895,20.01845278,1302.0,1301.6,10.0]
[1610291879896,16.00939144,1301.9,1301.6,10.0]
[1610291880094,17.54079144,1301.9,1301.6,10.0]
[1610291880295,16.00939144,1301.9,1301.6,10.0]
[1610291881095,16.01082528,1301.8,1301.6,10.0]
[1610291881296,17.55722528,1301.8,1301.6,10.0]
[1610291881495,20.02165032,1301.7,1301.6,10.0]
[1610291881898,4.00959,1301.7,1301.6,10.0]
[1610291882397,4.00959,1301.7,1301.1,4.00959]
[1610291882597,5.54159,1301.7,1301.1,4.00959]
[1610291882797,5.54159,1301.7,1301.6,10.0]
[1610291884100,4.00959,1301.7,1301.6,10.0]
[1610291884999,5.54869,1301.7,1301.6,10.0]
[1610291885201,23.44736585,1301.7,1301.6,10.0]
[1610291885399,21.90826585,1301.7,1301.6,10.0]
[1610291885799,17.89867585,1301.7,1301.6,10.0]
[1610291886299,43.37037526,1302.1,1301.6,10.0]
[1610291886300,17.89617367,1301.8,1301.6,10.0]
[1610291886499,17.89617367,1301.8,1301.7,10.0]
[1610291886700,17.89611903,1301.9,1301.7,10.0]
[1610291887103,17.89611903,1301.9,1301.2,10.0]
[1610291887304,16.01132112,1301.8,1301.2,10.0]
[1610291887504,16.01132112,1301.8,1301.7,4.00959]
[1610291888005,4.00959,1301.9,1301.7,4.00959]
[1610291888205,16.01081929,1301.8,1301.7,14.00959]
[1610291888604,16.01081929,1301.8,1301.0,46.6565]
[1610291889005,16.01081929,1301.8,1301.1,10.0]
[1610291889205,12.24503359,1301.2,1301.1,10.0]
[1610291889411,12.24503359,1301.2,1301.1,4.00959]
[1610291889806,12.24512091,1301.3,1301.1,4.00959]
[1610291890009,12.24512474,1301.2,1301.1,14.00959]
[1610291890206,12.24512474,1301.2,1301.1,4.00959]
[1610291890408,12.24522204,1301.3,1301.1,4.00959]
[1610291890608,12.24522204,1301.3,1301.2,11.17637572]
[1610291890813,14.12945038,1301.4,1301.2,11.17637572]
[1610291891010,21.90563828,1301.9,1301.2,11.17637572]
[1610291891011,14.13009647,1301.3,1301.2,11.17637572]
[1610291891209,14.13009647,1301.3,1301.2,1.17637572]
[1610291891409,4.00959,1301.3,1301.2,1.17637572]
[1610291891608,4.00959,1301.3,1301.2,11.17637572]
[1610291891809,4.00959,1301.3,1301.2,1.17637572]
[1610291892610,16.01437701,1301.5,1301.2,11.17637572]
[1610291893010,16.01437701,1301.5,1301.3,10.0]
[1610291893410,8.6839393,1302.2,1301.4,10.0]
[1610291893612,2.4459,1302.6,1301.4,10.0]
[1610291893810,2.4459,1302.6,1301.3,10.0]
[1610291894009,2.0258,1302.6,1301.3,10.0]
[1610291894613,46.8938,1301.9,1301.5,10.0]
[1610291894811,46.8938,1301.9,1301.2,1.17637572]
[1610291894812,46.8938,1301.9,1301.3,10.0]
[1610291895013,46.8938,1301.9,1301.1,34.00959]
[1610291895212,46.8938,1301.9,1301.4,10.0]
[1610291895415,4.00959,1301.5,1301.4,10.0]
[1610291895612,4.00959,1301.5,1301.2,10.0]
[1610291895813,4.00959,1301.5,1301.3,10.0]
[1610291896213,46.8938,1301.9,1301.4,10.0]
[1610291896615,14.129211,1301.5,1301.3,1.17651865]
[1610291897014,14.12887646,1301.6,1301.3,1.17651865]
[1610291897415,14.12887646,1301.6,1301.5,4.00959]
[1610291897814,14.12887646,1301.6,1301.5,14.00959]
[1610291898214,4.00959,1301.9,1301.5,14.00959]
[1610291898415,4.00959,1301.9,1301.5,10.0]
[1610291898416,14.1285637,1301.6,1301.5,10.0]
[1610291898615,14.1285637,1301.6,1301.3,1.17651865]
[1610291898815,14.1285637,1301.6,1301.5,10.0]
[1610291899215,14.1285637,1301.6,1301.4,10.0]
[1610291899417,18.1381537,1301.6,1301.4,4.00959]
[1610291899819,18.1381537,1301.6,1301.5,10.0]
[1610291900217,18.13874754,1301.6,1301.5,10.0]
[1610291900716,14.12915754,1301.6,1301.5,10.0]
[1610291900920,14.12830204,1301.7,1301.5,10.0]
[1610291901119,14.12805823,1301.6,1301.5,10.0]
[1610291901319,14.12805823,1301.6,1301.4,4.00959]
[1610291901825,14.12805823,1301.6,1301.5,10.0]
[1610291902225,14.12805823,1301.6,1301.5,11.17636189]
[1610291902528,18.13695408,1301.7,1301.5,11.17636189]
[1610291902826,4.00959,1301.7,1301.6,10.0]
[1610291903527,4.00959,1301.7,1301.6,11.1762217]
[1610291903928,18.13701043,1301.7,1301.6,11.1762217]
[1610291904329,4.00959,1301.7,1301.6,11.1762217]
[1610291905430,4.00959,1301.7,1301.6,15.1858117]
[1610291905832,18.13709314,1301.7,1301.6,15.1858117]
[1610291906534,19.66329314,1301.7,1301.6,15.1858117]
[1610291908234,18.13709314,1301.7,1301.6,15.1858117]
[1610291909334,19.67939314,1301.7,1301.6,15.1858117]
[1610291909538,5.55189,1301.7,1301.6,15.1858117]
[1610291909735,4.00959,1301.7,1301.6,15.1858117]
[1610291910736,19.69519355,1301.7,1301.6,15.1858117]
[1610291911136,5.56789,1301.7,1301.6,15.1858117]
[1610291911537,5.56789,1301.7,1301.6,11.1762217]
[1610291911936,4.00959,1301.7,1301.6,11.1762217]
[1610291912136,4.00959,1301.7,1301.6,10.0]
[1610291913137,20.02307548,1301.7,1301.6,10.0]
[1610291913339,63.93907548,1301.7,1301.6,10.0]
[1610291913739,47.92559,1301.7,1301.6,10.0]
[1610291914138,49.44669,1301.7,1301.6,10.0]
[1610291914738,47.92559,1301.7,1301.6,10.0]
[1610291915739,49.47319,1301.7,1301.6,10.0]
[1610291915941,47.92559,1301.7,1301.6,5.28978204]
[1610291917941,47.60559,1301.7,1301.6,5.28978204]
[1610291918341,65.50652401,1301.7,1301.6,5.28978204]
[1610291918741,47.60559,1301.7,1301.6,5.28978204]
[1610291919442,65.1447733,1301.7,1301.6,5.28978204]
[1610291920043,49.13029,1301.7,1301.6,5.28978204]
[1610291920941,67.03022619,1301.7,1301.6,5.28978204]
[1610291921443,49.13029,1301.7,1301.6,5.28978204]
[1610291921643,47.60559,1301.7,1301.6,5.28978204]
[1610291922444,65.50497528,1301.7,1301.6,5.28978204]
[1610291922645,23.12037528,1301.7,1301.6,5.28978204]
[1610291923048,21.58897528,1301.7,1301.6,5.28978204]
[1610291923946,5.21029,1301.7,1301.6,5.28978204]
[1610291925047,23.11084367,1301.7,1301.6,5.28978204]
[1610291925346,5.21029,1301.7,1301.6,5.28978204]
[1610291925647,21.58995385,1301.7,1301.6,5.28978204]
[1610291926750,3.68959,1301.7,1301.6,5.28978204]
[1610291929650,33.68959,1301.7,1301.6,5.28978204]
[1610291931357,52.53464622,1301.7,1301.6,5.28978204]
[1610291931557,22.53464622,1301.7,1301.6,5.28978204]
[1610291931757,3.68959,1301.7,1301.6,5.28978204]
[1610291932957,33.68959,1301.7,1300.4,58.9693]
[1610291933156,3.68959,1301.7,1300.4,58.9693]
[1610291933357,3.68959,1301.7,1301.2,10.0]
[1610291933560,4.00959,1301.3,1301.2,10.0]
[1610291933759,6.29699,1301.3,1300.4,56.6746]
[1610291934161,6.29699,1301.3,1301.2,10.0]
[1610291934361,6.29699,1301.3,1300.4,56.6746]
[1610291934562,24.20037924,1301.3,1300.4,56.6746]
[1610291934762,24.20037924,1301.3,1301.2,10.0]
[1610291935763,6.29699,1301.3,1301.2,10.0]
[1610291936763,24.20016787,1301.3,1301.2,10.0]
[1610291937864,6.29699,1301.3,1301.2,10.0]
[1610291940967,24.20063206,1301.3,1301.2,10.0]
[1610291941666,6.29699,1301.3,1301.2,10.0]
[1610291943969,22.31367667,1301.3,1301.2,10.0]
[1610291949176,6.29699,1301.3,1301.2,10.0]
[1610291951178,20.42726394,1301.3,1301.2,11.17659152]
[1610291951578,20.42726394,1301.3,1301.2,15.18618152]
[1610291952578,6.29699,1301.3,1301.2,15.18618152]
[1610291952778,4.00959,1301.3,1301.2,11.17659152]
[1610291953578,18.13940512,1301.3,1301.2,11.17659152]
[1610291954980,4.00959,1301.3,1301.2,11.17659152]
[1610291955884,18.13904092,1301.3,1301.2,11.17659152]
[1610291956282,4.00959,1301.3,1301.2,11.17659152]
[1610291957383,18.13892348,1301.3,1301.2,11.17659152]
[1610291957882,4.00959,1301.3,1301.2,11.17659152]
[1610291959087,14.12899052,1301.4,1301.2,11.17659152]
[1610291959287,12.24491012,1301.3,1301.2,1.17659152]
[1610291959687,12.24491012,1301.3,1301.2,11.17659152]
[1610291960590,12.24376315,1301.4,1301.2,11.17659152]
[1610291960790,21.0,1301.3,1301.2,11.17659152]
[1610291961190,33.24421301,1301.3,1301.2,1.17659152]
[1610291961390,33.24421301,1301.3,1300.6,60.9108]
[1610291961792,10.36118858,1301.1,1301.0,4.00959]
[1610291962490,37.25432817,1301.3,1301.0,14.00959]
[1610291962691,37.25432817,1301.3,1301.0,17.57848995]
[1610291962893,10.36158274,1301.1,1301.0,7.57848995]
[1610291963291,10.36158274,1301.1,1301.0,17.57848995]
[1610291963491,37.25432817,1301.3,1301.0,17.57848995]
[1610291963691,4.00959,1301.1,1301.0,13.56889995]
[1610291964093,16.25577129,1301.1,1301.0,13.56889995]
[1610291966392,16.25577129,1301.1,1301.0,12.3925]
[1610291966691,16.25577129,1301.1,1301.0,13.56915023]
[1610291966892,4.00959,1301.1,1301.0,13.56915023]
[1610291967395,16.25631659,1301.1,1301.0,13.56915023]
[1610291968794,4.00959,1301.1,1301.0,13.56915023]
[1610291969194,16.25612023,1301.1,1301.0,13.56915023]
[1610291969694,16.25612023,1301.1,1301.0,17.57874023]
[1610291969895,16.25612023,1301.1,1301.0,47.57874023]
[1610291970495,12.24653023,1301.1,1301.0,47.57874023]
[1610291970996,12.24575779,1301.2,1301.0,47.57874023]
[1610291971397,12.24575779,1301.2,1301.1,10.0]
[1610291971797,4.00959,1301.2,1301.1,10.0]
[1610291972398,4.00959,1301.2,1301.1,11.17660327]
[1610291974901,34.13955582,1301.3,1301.1,11.17660327]
[1610291975100,20.00959,1301.3,1301.1,11.17660327]
[1610291975299,34.13969092,1301.3,1301.1,11.17660327]
[1610291975500,34.13969092,1301.3,1301.2,10.0]
[1610291975800,38.14928092,1301.3,1301.2,10.0]
[1610291976401,38.14928092,1301.3,1301.2,11.17660649]
[1610291976600,24.01918,1301.3,1301.2,11.17660649]
[1610291976904,38.14938,1301.3,1301.2,11.17660649]
[1610291977703,38.14938,1301.3,1301.2,15.18619649]
[1610291977903,24.01918,1301.3,1301.2,15.18619649]
[1610291979805,38.14947531,1301.3,1301.2,15.18619649]
[1610291980906,38.14947531,1301.3,1301.2,11.17660649]
[1610291981408,24.01918,1301.3,1301.2,11.17660649]
[1610291986115,36.26426085,1301.3,1301.2,11.17660649]
[1610291987716,36.26426085,1301.3,1301.2,15.18619649]
[1610291988418,36.26426085,1301.3,1301.2,17.35869649]
[1610291994624,36.26426085,1301.3,1301.2,13.34910649]
[1610291995425,24.01918,1301.3,1301.2,13.34910649]
[1610291995825,24.01918,1301.3,1301.2,11.17660649]
[1610291998230,38.14977606,1301.3,1301.2,11.17660649]
[1610291998830,40.03509426,1301.3,1301.2,11.17660649]
[1610291999232,41.97549426,1301.3,1301.2,11.17660649]
[1610291999631,25.95958,1301.3,1301.2,10.0]
[1610292000032,22.51208,1301.3,1301.2,10.0]
[1610292000232,38.86124923,1301.3,1301.2,10.0]
[1610292000732,20.95958,1301.3,1301.2,10.0]
[1610292001232,22.47768,1301.3,1301.2,10.0]
[1610292001532,20.95958,1301.3,1301.2,10.0]
[1610292002635,22.50348,1301.3,1301.2,10.0]
[1610292003636,20.95958,1301.3,1301.2,10.0]
[1610292004639,22.48938,1301.3,1301.2,10.0]
[1610292005538,20.95958,1301.3,1301.2,10.0]
[1610292006843,22.50908,1301.3,1301.2,10.0]
[1610292007641,38.52611007,1301.3,1301.2,10.0]
[1610292008042,36.97661007,1301.3,1301.2,10.0]
[1610292009141,38.50531007,1301.3,1301.2,10.0]
[1610292009344,36.97661007,1301.3,1301.2,10.0]
[1610292010042,20.95958,1301.3,1301.2,10.0]
[1610292010241,19.01918,1301.3,1301.2,10.0]
[1610292010443,20.55668,1301.3,1301.2,10.0]
[1610292011043,19.01918,1301.3,1301.2,10.0]
[1610292011645,35.03538552,1301.3,1301.2,10.0]
[1610292012044,36.57578552,1301.3,1301.2,10.0]
[1610292012545,35.03538552,1301.3,1301.2,10.0]
[1610292013147,37.22198552,1301.3,1301.2,10.0]
[1610292013348,21.20578,1301.3,1301.2,10.0]
[1610292013546,22.75368,1301.3,1301.2,10.0]
[1610292013848,21.20578,1301.3,1301.2,10.0]
[1610292014246,39.10780162,1301.3,1301.2,10.0]
[1610292014846,40.66110162,1301.3,1301.2,10.0]
[1610292015548,39.10780162,1301.3,1301.2,10.0]
[1610292017348,40.65190162,1301.3,1301.2,10.0]
[1610292017547,39.10780162,1301.3,1301.2,10.0]
[1610292018350,21.20578,1301.3,1301.2,10.0]
[1610292018549,22.72868,1301.3,1301.2,10.0]
[1610292021055,21.20578,1301.3,1301.2,10.0]
[1610292023159,37.22225486,1301.3,1301.2,10.0]
[1610292024158,21.20578,1301.3,1301.2,10.0]
[1610292025258,39.11035287,1301.3,1301.2,10.0]
[1610292026259,40.65515287,1301.3,1301.2,10.0]
[1610292026660,39.11035287,1301.3,1301.2,10.0]
[1610292027061,21.20578,1301.3,1301.2,10.0]
[1610292027662,22.75798,1301.3,1301.2,10.0]
[1610292027863,37.22292581,1301.3,1301.2,14.00959]
[1610292028563,37.22292581,1301.3,1301.2,10.0]
[1610292028764,38.78202581,1301.3,1301.2,10.0]
[1610292028963,37.22292581,1301.3,1301.2,10.0]
[1610292029564,21.20578,1301.3,1301.2,10.0]
[1610292029765,19.01918,1301.3,1301.2,10.0]
[1610292029967,20.53508,1301.3,1301.2,10.0]
[1610292030363,19.01918,1301.3,1301.2,10.0]
[1610292031864,35.0348572,1301.3,1301.2,10.0]
[1610292032666,36.5604572,1301.3,1301.2,10.0]
[1610292032865,19.01918,1301.3,1301.2,10.0]
[1610292034065,20.54498,1301.3,1301.2,10.0]
[1610292034265,19.01918,1301.3,1301.2,10.0]
[1610292035468,35.03605962,1301.3,1301.2,10.0]
[1610292036266,31.02646962,1301.3,1301.2,10.0]
[1610292036467,15.00959,1301.3,1301.2,10.0]
[1610292036867,30.67144279,1301.3,1301.2,10.0]
[1610292037468,15.00959,1301.3,1301.2,10.0]
[1610292037867,15.00959,1301.3,1301.2,11.17655623]
[1610292038268,15.00959,1301.3,1301.2,13.49935623]
[1610292038469,16.56669,1301.3,1301.2,13.49935623]
[1610292038669,15.00959,1301.3,1301.2,13.49935623]
[1610292039070,27.2548426,1301.3,1301.2,13.49935623]
[1610292039470,15.00959,1301.3,1301.2,13.49935623]
[1610292039670,16.52849,1301.3,1301.2,13.49935623]
[1610292040078,16.52849,1301.3,1301.2,43.49935623]
[1610292040278,25.36910933,1301.3,1301.2,43.49935623]
[1610292040678,23.4863728,1301.3,1301.2,43.49935623]
[1610292040978,15.00959,1301.3,1301.2,43.49935623]
[1610292041478,16.53769,1301.3,1301.2,43.49935623]
[1610292042679,48.0434987,1301.7,1301.2,43.49935623]
[1610292042881,11.89423144,1301.8,1301.3,48.9429]
[1610292043080,11.89423144,1301.8,1301.4,30.0]
[1610292043281,1.5378,1301.8,1301.4,40.0]
[1610292043480,1.5378,1301.8,1301.4,41.17554394]
[1610292043680,1.5378,1301.8,1301.5,10.0]
[1610292043881,1.5378,1301.8,1301.7,4.00959]
[1610292044081,1.5378,1301.8,1301.7,44.00959]
[1610292044481,1.5415,1302.2,1301.7,44.00959]
[1610292044681,1.5415,1302.2,1301.8,10.0]
[1610292044882,1.5415,1302.2,1301.9,30.0]
[1610292045182,1.5415,1302.2,1302.0,10.0]
[1610292045384,10.35287497,1302.4,1302.0,40.0]
[1610292045582,10.35287497,1302.4,1302.0,30.0]
[1610292045781,10.35287497,1302.4,1302.0,32.125]
[1610292045982,10.35287497,1302.4,1302.3,4.00959]
[1610292046382,10.35287497,1302.4,1302.3,46.25539]
[1610292047083,10.35287497,1302.4,1302.3,53.32269]
[1610292047482,11.88687497,1302.4,1302.3,53.32269]
[1610292047884,10.35287497,1302.4,1302.3,53.32269]
[1610292048283,10.35159833,1302.5,1302.3,53.32269]
[1610292048482,10.35159833,1302.5,1302.4,10.0]
[1610292048983,11.88139833,1302.5,1302.4,10.0]
[1610292050185,1.5298,1302.5,1302.4,10.0]
[1610292050386,11.8811567,1302.5,1302.4,10.0]
[1610292050686,1.5298,1302.5,1302.4,10.0]
[1610292051387,1.5298,1302.5,1302.4,40.0]
[1610292052585,13.76374997,1302.5,1302.4,40.0]
[1610292052888,12.23394997,1302.5,1302.4,40.0]
[1610292053686,14.11586257,1302.7,1302.4,40.0]
[1610292053886,12.23447064,1302.5,1302.4,40.0]
[1610292054087,13.75857064,1302.5,1302.4,30.0]
[1610292054486,13.75857064,1302.5,1302.4,40.0]
[1610292055592,1.5241,1302.5,1302.4,40.0]
[1610292056187,12.23383453,1302.6,1302.4,40.0]
[1610292056388,12.23383453,1302.6,1302.5,10.0]
[1610292056789,10.23383453,1302.6,1302.5,10.0]
[1610292056991,14.1152393,1302.8,1302.5,10.0]
[1610292057192,15.6384393,1302.8,1302.6,10.0]
[1610292057792,15.6384393,1302.8,1302.5,10.0]
[1610292057990,4.00959,1302.6,1302.4,30.0]
[1610292058392,4.00959,1302.6,1302.5,10.0]
[1610292058792,4.00959,1302.6,1302.5,11.17557757]
[1610292059192,5.55539,1302.6,1302.5,11.17557757]
[1610292060192,5.55539,1302.6,1302.5,10.0]
[1610292060392,20.01045197,1302.6,1302.5,10.0]
[1610292061393,16.00086197,1302.6,1302.5,10.0]
[1610292061793,15.9995935,1302.7,1302.5,10.0]
[1610292061992,15.9995935,1302.7,1302.6,4.00959]
[1610292062195,15.99911936,1302.8,1302.6,14.00959]
[1610292062393,14.11674272,1302.7,1302.6,14.00959]
[1610292062593,14.11674272,1302.7,1302.6,4.00959]
[1610292062793,14.11674272,1302.7,1302.6,14.00959]
[1610292062994,14.11532101,1302.8,1302.6,14.00959]
[1610292063395,14.11501366,1302.9,1302.7,10.0]
[1610292063595,15.99673667,1303.1,1302.7,10.0]
[1610292063795,14.11515655,1302.9,1302.7,10.0]
[1610292063996,14.11515655,1302.9,1302.8,4.00959]
[1610292064195,14.11515655,1302.9,1302.8,5.18488804]
[1610292064496,15.99673667,1303.1,1302.8,5.18488804]
[1610292064696,15.99673667,1303.1,1302.8,1.17529804]
[1610292064895,15.99673667,1303.1,1302.8,11.17529804]
[1610292065096,15.99791215,1303.0,1302.8,11.17529804]
[1610292065296,15.99791215,1303.0,1302.9,10.0]
[1610292065698,17.87946607,1303.2,1302.5,2.29]
[1610292065901,17.87946607,1303.2,1302.9,10.0]
[1610292066197,20.00797987,1303.0,1302.9,10.0]
[1610292066400,20.00797987,1303.0,1302.6,4.00959]
[1610292066598,14.11630098,1302.7,1302.6,4.00959]
[1610292067100,20.00797987,1303.0,1302.6,14.00959]
[1610292067299,14.1162806,1302.7,1302.6,14.00959]
[1610292067500,14.1162806,1302.7,1302.6,4.00959]
[1610292067900,15.99866486,1302.9,1302.6,10.0]
[1610292068106,4.00959,1302.7,1302.6,10.0]
[1610292068301,20.01071891,1302.7,1302.6,10.0]
[1610292068504,20.01071891,1302.7,1302.6,11.17566015]
[1610292068701,4.00959,1302.7,1302.6,11.17566015]
[1610292069101,21.89524409,1302.7,1302.6,11.17566015]
[1610292069802,21.89524409,1302.7,1302.6,10.0]
[1610292069803,4.00959,1302.7,1302.6,10.0]
[1610292070300,5.53919,1302.7,1302.6,10.0]
[1610292071004,22.84254548,1302.7,1302.6,5.29293789]
[1610292071601,4.00959,1302.7,1302.6,5.29293789]
[1610292072401,5.54569,1302.7,1302.6,5.29293789]
[1610292073001,4.00959,1302.7,1302.6,5.29293789]
[1610292073601,4.00959,1302.7,1302.4,30.0]
[1610292073802,4.00959,1302.7,1302.5,10.0]
[1610292074003,5.52619,1302.7,1302.5,10.0]
[1610292074203,5.52619,1302.7,1302.6,10.0]
[1610292074804,5.52619,1302.7,1302.4,30.0]
[1610292074805,5.52619,1302.7,1302.5,10.0]
[1610292075205,5.52619,1302.7,1302.6,10.0]
[1610292075607,5.52619,1302.7,1302.5,10.0]
[1610292075807,5.52619,1302.7,1302.4,30.0]
[1610292075808,4.00959,1302.7,1302.6,10.0]
[1610292076207,4.00959,1302.7,1301.3,61.748]
[1610292076410,4.00959,1302.7,1302.6,10.0]
[1610292077009,5.53219,1302.7,1302.6,10.0]
[1610292077209,5.53219,1302.7,1302.6,0.2774]
[1610292077409,4.00959,1302.7,1302.6,0.2774]
[1610292078611,5.55549,1302.7,1302.6,0.2774]
[1610292078811,4.00959,1302.7,1302.6,0.2774]
[1610292080113,4.00959,1302.7,1301.3,61.748]
[1610292080314,5.55529,1302.7,1301.4,10.0]
[1610292080513,16.01414639,1301.5,1301.4,10.0]
[1610292080714,16.01414639,1301.5,1301.3,61.748]
[1610292080914,17.78704639,1301.5,1301.3,61.748]
[1610292081314,17.78704639,1301.5,1301.4,10.0]
[1610292081517,1.7729,1301.5,1301.4,10.0]
[1610292082315,5.78249,1301.5,1301.4,10.0]
[1610292083117,7.33239,1301.5,1301.4,10.0]
[1610292084721,5.78249,1301.5,1301.4,10.0]
[1610292085320,21.79657948,1301.5,1301.4,10.0]
[1610292085721,7.31449,1301.5,1301.4,10.0]
[1610292086322,5.78249,1301.5,1301.4,10.0]
[1610292087022,23.68238354,1301.5,1301.4,10.0]
[1610292087422,25.21028354,1301.5,1301.4,10.0]
[1610292088023,23.68238354,1301.5,1301.4,10.0]
[1610292088323,5.78249,1301.5,1301.4,10.0]
[1610292088924,7.30529,1301.5,1301.4,10.0]
[1610292089225,5.78249,1301.5,1301.4,10.0]
[1610292089625,23.68272626,1301.5,1301.4,10.0]
[1610292090225,25.20182626,1301.5,1301.4,10.0]
[1610292091427,7.30159,1301.5,1301.4,10.0]
[1610292091627,5.78249,1301.5,1301.4,10.0]
[1610292092228,23.68509855,1301.5,1301.4,10.0]
[1610292092927,25.23759855,1301.5,1301.4,10.0]
[1610292093128,7.33499,1301.5,1301.4,10.0]
[1610292093729,5.78249,1301.5,1301.4,10.0]
[1610292094129,23.68488992,1301.5,1301.4,10.0]
[1610292094832,5.78249,1301.5,1301.4,10.0]
[1610292098336,21.79905996,1301.5,1301.4,10.0]
[1610292100543,5.78249,1301.5,1301.4,10.0]
[1610292100744,1.7729,1301.5,1301.4,10.0]
[1610292100943,16.01501187,1301.6,1301.4,10.0]
[1610292101144,14.12853245,1301.5,1301.4,40.0]
[1610292101344,14.12853245,1301.5,1301.4,30.0]
[1610292101545,12.24388538,1301.5,1301.4,30.0]
[1610292101744,12.24388538,1301.5,1301.4,40.0]
[1610292101950,12.24329078,1301.6,1301.4,40.0]
[1610292102147,12.24266425,1301.7,1301.5,10.0]
[1610292102347,12.24266425,1301.7,1301.5,40.0]
[1610292102548,12.24217881,1301.8,1301.6,14.00959]
[1610292103149,12.24217881,1301.8,1301.7,10.0]
[1610292103749,12.24217881,1301.8,1301.7,11.1761639]
[1610292103952,14.12418178,1302.0,1301.7,11.1761639]
[1610292104151,14.12418178,1302.0,1301.8,10.0]
[1610292104351,14.12418178,1302.0,1301.9,30.0]
[1610292104552,18.13277155,1302.1,1301.9,44.00959]
[1610292104750,14.12318155,1302.1,1302.0,10.0]
[1610292104951,14.12194311,1302.2,1302.0,10.0]
[1610292105152,14.12132015,1302.3,1302.1,10.0]
[1610292105551,14.12132015,1302.3,1302.0,10.0]
[1610292105751,14.12142359,1302.2,1302.1,10.0]
[1610292106351,14.12142359,1302.2,1302.0,10.0]
[1610292106551,18.05376392,1302.4,1302.1,10.0]
[1610292106751,18.05376392,1302.4,1302.0,10.0]
[1610292106952,16.00509041,1302.3,1302.0,10.0]
[1610292107154,16.00509041,1302.3,1301.9,4.00959]
[1610292107352,16.00509041,1302.3,1302.2,10.0]
[1610292107552,16.00509041,1302.3,1301.9,4.00959]
[1610292107853,18.05340928,1302.4,1302.2,10.0]
[1610292108252,18.05340928,1302.4,1301.9,4.00959]
[1610292108453,2.0491,1302.4,1302.2,10.0]
[1610292108653,2.0491,1302.4,1302.3,4.00959]
[1610292109154,2.0491,1302.4,1302.3,14.00959]
[1610292109353,2.0491,1302.4,1302.3,10.0]
[1610292110653,6.05869,1302.4,1302.3,10.0]
[1610292110853,4.00959,1302.4,1302.3,10.0]
[1610292111053,21.9002908,1302.4,1302.3,10.0]
[1610292112254,4.00959,1302.4,1302.3,10.0]
[1610292113358,21.89979757,1302.4,1302.3,10.0]
[1610292113557,4.00959,1302.4,1302.3,10.0]
[1610292113758,6.36359,1302.4,1302.3,10.0]
[1610292114260,24.25415809,1302.4,1302.3,10.0]
[1610292116161,6.36359,1302.4,1302.3,10.0]
[1610292117363,24.25321304,1302.4,1302.3,10.0]
[1610292117763,6.36359,1302.4,1302.3,10.0]
[1610292118765,22.36871113,1302.4,1302.3,10.0]
[1610292121470,6.36359,1302.4,1302.3,10.0]
[1610292123070,6.36359,1302.4,1302.3,11.17590678]
[1610292124973,20.48298687,1302.4,1302.3,11.17590678]
[1610292125575,17.98669687,1302.4,1302.3,11.17590678]
[1610292125775,17.98669687,1302.4,1302.3,41.17590678]
[1610292125976,3.8673,1302.4,1302.3,41.17590678]
[1610292126177,3.8673,1302.4,1302.3,11.17590678]
[1610292126178,1.5133,1302.4,1302.3,11.17590678]
[1610292126576,13.74901488,1302.4,1302.3,11.17590678]
[1610292126776,1.5133,1302.4,1302.3,11.17590678]
[1610292127579,13.74884434,1302.4,1302.3,11.17590678]
[1610292127980,13.74884434,1302.4,1302.3,41.17590678]
[1610292128780,12.23554434,1302.4,1302.3,41.17590678]
[1610292128981,12.23440106,1302.5,1302.3,41.17590678]
[1610292129381,12.23440106,1302.5,1302.4,10.0]
[1610292129581,12.23440106,1302.5,1302.4,40.0]
[1610292130181,12.23440106,1302.5,1302.4,41.17545524]
[1610292130582,12.23440106,1302.5,1302.4,11.17545524]